[Event "8th Brazilian Open SESC Caioba 2024"]
[Site "Caioba"]
[Date "2024.06.25"]
[Round "3.9"]
[White "Casalaspro, Mathias Andre"]
[Black "Rodriguez Vila, Andres"]
[Result "1/2-1/2"]
[ECO "A45"]
[WhiteElo "2172"]
[BlackElo "2396"]
[Annotator "RC"]
[PlyCount "144"]
[EventDate "2024.06.15"]
[EventCountry "BRA"]
[SourceTitle "playchess.com"]
[Source "ChessBase"]
[SourceQuality "1"]
[TimeControl "5400+30"]

1. d4 {[%emt 0:00:04]} e6 {[%emt 0:00:35]} 2. Nc3 {[%emt 0:00:07]} Nf6 {[%emt 0:02:15]} 3. Bf4 {[%emt 0:00:15]} Bb4 {[%emt 0:00:07]} 4. Qd3 {[%emt 0:01:32]} c5 {[%emt 0:00:16]} 5. dxc5 {[%emt 0:08:44]} Na6 {[%emt 0:00:10]} 6. a3 {[%emt 0:03:49]} Nxc5 {[%emt 0:08:11]} 7. Qd4 {[%emt 0:01:40]} Bxc3+ {[%emt 0:00:16]} 8. Qxc3 {[%emt 0:00:20]} b6 {[%emt 0:03:17]} 9. f3 {[%emt 0:07:59]} d5 {[%emt 0:04:15]} 10. e3 {[%emt 0:03:55]} O-O {[%emt 0:00:28]} 11. Nh3 {[%emt 0:06:33]} Bb7 {[%emt 0:01:20]} 12. Be2 {[%emt 0:01:20]} Rc8 {[%emt 0:00:07]} 13. Qd2 {[%emt 0:00:33]} Re8 {[%emt 0:00:44]} 14. O-O {[%emt 0:01:15]} e5 {[%emt 0:01:11]} 15. Bg5 {[%emt 0:01:27]} a6 {[%emt 0:01:57]} 16. Rad1 {[%emt 0:03:31]} b5 {[%emt 0:00:17]} 17. c3 {[%emt 0:03:01]} Qb6 {[%emt 0:01:12]} 18. Bh4 {[%emt 0:03:35]} Rcd8 {[%emt 0:10:08]} 19. Bf2 {[%emt 0:06:55]} Qc7 {[%emt 0:02:13]} 20. Bg3 {[%emt 0:08:37]} Qe7 {[%emt 0:01:39]} 21. Rfe1 {[%emt 0:01:08]} Bc8 {[%emt 0:01:04]} 22. Nf2 {[%emt 0:00:29]} Nh5 {[%emt 0:01:06]} 23. Nd3 {[%emt 0:04:46]} Nxg3 {[%emt 0:00:14]} 24. hxg3 {[%emt 0:00:11]} Nb3 {[%emt 0:01:52]} 25. Qc2 {[%emt 0:00:27]} Na5 {[%emt 0:00:05]} 26. Nb4 {[%emt 0:01:25]} Qc5 {[%emt 0:01:31]} 27. Bd3 {[%emt 0:02:12]} e4 {[%emt 0:02:54]} 28. fxe4 {[%emt 0:00:47]} dxe4 {[%emt 0:00:04]} 29. Bf1 {[%emt 0:00:14]} Rxd1 {[%emt 0:01:25]} 30. Qxd1 {[%emt 0:00:05]} Qg5 {[%emt 0:00:32]} 31. Qd6 {[%emt 0:00:42]} Rd8 {[%emt 0:08:19]} 32. Qc7 {[%emt 0:00:51]} Nc4 {[%emt 0:02:10]} 33. Bxc4 {[%emt 0:00:38]} bxc4 {[%emt 0:00:02]} 34. Nc6 {[%emt 0:00:13]} Re8 {[%emt 0:00:06]} 35. Qf4 {[%emt 0:01:31]} Qb5 {[%emt 0:02:50]} 36. Rf1 {[%emt 0:06:56]} f6 {[%emt 0:00:45]} 37. Qd6 {[%emt 0:00:34]} Qxb2 {[%emt 0:07:13]} 38. Ne7+ {[%emt 0:00:25]} Kh8 {[%emt 0:00:12]} 39. Rxf6 {[%emt 0:04:56]} Qxc3 {[%emt 0:02:28]} 40. Rf4 {[%emt 0:00:53]} Qxe3+ {[%emt 0:14:32]} 41. Kh2 {[%emt 0:00:09]} h6 {[%emt 0:00:34]} 42. Nxc8 {[%emt 0:07:57]} Rxc8 {[%emt 0:00:34]} 43. Rf8+ {[%emt 0:00:06]} Rxf8 {[%emt 0:00:09]} 44. Qxf8+ {[%emt 0:00:05]} Kh7 {[%emt 0:00:02]} 45. Qf5+ {[%emt 0:00:06]} Kg8 {[%emt 0:00:06]} 46. Qc8+ {[%emt 0:00:17]} Kf7 {[%emt 0:00:17]} 47. Qf5+ {[%emt 0:00:04]} Ke7 {[%emt 0:00:18]} 48. Qe5+ {[%emt 0:00:03]} Kd7 {[%emt 0:00:10]} 49. Qd5+ {[%emt 0:00:04]} Kc7 {[%emt 0:00:15]} 50. Qxc4+ {[%emt 0:00:58]} Kd6 {[%emt 0:00:30]} 51. Qxa6+ {[%emt 0:00:08]} Kd5 {[%emt 0:00:05]} 52. Qb5+ {[%emt 0:01:30]} Kd4 {[%emt 0:00:21]} 53. Qb6+ {[%emt 0:01:59]} Kd3 {[%emt 0:00:05]} 54. Qxe3+ {[%emt 0:00:18]} Kxe3 {[%emt 0:00:12]} 55. a4 {[%emt 0:00:07]} Kf2 {[%emt 0:04:52]} 56. a5 {[%emt 0:00:04]} e3 {[%emt 0:00:03]} 57. a6 {[%emt 0:00:11]} e2 {[%emt 0:00:05]} 58. a7 {[%emt 0:00:02]} e1=Q {[%emt 0:00:07]} 59. a8=Q {[%emt 0:11:17]} Qg1+ {[%emt 0:00:17]} 60. Kh3 {[%emt 0:00:00]} Qh1+ {[%emt 0:00:05]} 61. Kg4 {[%emt 0:00:00]} h5+ {[%emt 0:00:09]} 62. Kg5 {[%emt 0:00:00]} Qc1+ {[%emt 0:00:13]} 63. Kxh5 {[%emt 0:00:00]} Qh6+ {[%emt 0:00:20]} 64. Kg4 {[%emt 0:00:00]} Qg6+ {[%emt 0:00:09]} 65. Kf4 {[%emt 0:00:00]} Qxg3+ {[%emt 0:02:40]} 66. Kf5 {[%emt 0:00:00]} Qd3+ {[%emt 0:01:03]} 67. Qe4 {[%emt 0:00:00]} g6+ {[%emt 0:00:12]} 68. Ke5 {[%emt 0:00:00]} Qc3+ {[%emt 0:01:27]} 69. Ke6 {[%emt 0:00:00]} Qb3+ {[%emt 0:02:22]} 70. Kf6 {[%emt 0:00:00]} Qg3 {[%emt 0:00:38]} 71. Qxg6 {[%emt 0:00:00]} Qxg6+ {[%emt 0:00:05]} 72. Kxg6 {[%emt 0:00:00]} Kxg2 {[%emt 0:18:03]} 1/2-1/2

[Event "8th Brazilian Open SESC Caioba 2024"]
[Site "Caioba"]
[Date "2024.06.25"]
[Round "3.10"]
[White "Schnaider, Ilan"]
[Black "Bueno, Alfeu Junior Varela"]
[Result "1/2-1/2"]
[ECO "C14"]
[WhiteElo "2395"]
[BlackElo "2140"]
[Annotator "RC"]
[PlyCount "39"]
[EventDate "2024.06.15"]
[EventCountry "BRA"]
[SourceTitle "playchess.com"]
[Source "ChessBase"]
[SourceQuality "1"]
[TimeControl "5400+30"]

1. e4 {[%emt 0:00:02]} e6 {[%emt 0:04:13]} 2. d4 {[%emt 0:00:14]} d5 {[%emt 0:00:13]} 3. Nc3 {[%emt 0:00:10]} Nf6 {[%emt 0:00:30]} 4. Bg5 {[%emt 0:00:18]} Be7 {[%emt 0:00:48]} 5. e5 {[%emt 0:00:10]} Nfd7 {[%emt 0:00:06]} 6. h4 {[%emt 0:00:07]} h6 {[%emt 0:01:31]} 7. Bxe7 {[%emt 0:01:08]} Qxe7 {[%emt 0:00:17]} 8. f4 {[%emt 0:01:00]} a6 {[%emt 0:06:50]} 9. Nf3 {[%emt 0:01:22]} c5 {[%emt 0:00:21]} 10. Qd2 {[%emt 0:00:40]} Nc6 {[%emt 0:01:11]} 11. g4 {[%emt 0:04:21]} cxd4 {[%emt 0:05:35]} 12. Nxd4 {[%emt 0:00:37]} Nxd4 {[%emt 0:01:21]} 13. Qxd4 {[%emt 0:00:03]} Qc5 {[%emt 0:00:59]} 14. Qd2 {[%emt 0:15:56]} Nb6 {[%emt 0:12:10]} 15. O-O-O {[%emt 0:02:02]} Bd7 {[%emt 0:03:43]} 16. Bd3 {[%emt 0:14:43]} O-O-O {[%emt 0:04:23]} 17. h5 {[%emt 0:09:17]} Bc6 {[%emt 0:06:53]} 18. Rh3 {[%emt 0:15:17]} Nc4 {[%emt 0:11:42]} 19. Bxc4 {[%emt 0:17:59]} dxc4 {[%emt 0:01:42]} 20. Qe3 {[%emt 0:00:47]} 1/2-1/2

[Event "8th Brazilian Open SESC Caioba 2024"]
[Site "Caioba"]
[Date "2024.06.25"]
[Round "3.11"]
[White "Cori T., Deysi"]
[Black "Chemin, Vitorio"]
[Result "0-1"]
[ECO "A07"]
[WhiteElo "2389"]
[BlackElo "2131"]
[Annotator "RC"]
[PlyCount "140"]
[EventDate "2024.06.15"]
[EventCountry "BRA"]
[SourceTitle "playchess.com"]
[Source "ChessBase"]
[SourceQuality "1"]
[TimeControl "5400+30"]

1. Nf3 {[%emt 0:02:32]} d5 {[%emt 0:02:26]} 2. g3 {[%emt 0:00:17]} Nf6 {[%emt 0:00:16]} 3. Bg2 {[%emt 0:00:07]} c6 {[%emt 0:01:04]} 4. O-O {[%emt 0:01:01]} Bf5 {[%emt 0:00:24]} 5. b3 {[%emt 0:02:01]} e6 {[%emt 0:00:16]} 6. Bb2 {[%emt 0:00:08]} Be7 {[%emt 0:00:11]} 7. d3 {[%emt 0:00:35]} O-O {[%emt 0:00:29]} 8. Nbd2 {[%emt 0:01:19]} h6 {[%emt 0:00:18]} 9. e3 {[%emt 0:09:25]} Nbd7 {[%emt 0:02:15]} 10. Qe2 {[%emt 0:00:34]} a5 {[%emt 0:00:43]} 11. a4 {[%emt 0:04:34]} Qb6 {[%emt 0:04:19]} 12. h3 {[%emt 0:09:53]} Bh7 {[%emt 0:04:14]} 13. Rfe1 {[%emt 0:17:00]} Qc7 {[%emt 0:06:37]} 14. e4 {[%emt 0:01:21]} Bc5 {[%emt 0:08:07]} 15. e5 {[%emt 0:02:07]} Ne8 {[%emt 0:00:10]} 16. Nf1 {[%emt 0:03:22]} Bb4 {[%emt 0:02:47]} 17. Red1 {[%emt 0:07:53]} Qd8 {[%emt 0:05:52]} 18. g4 {[%emt 0:01:27]} Be7 {[%emt 0:01:00]} 19. Ng3 {[%emt 0:00:35]} Nc7 {[%emt 0:01:18]} 20. Nh5 {[%emt 0:02:39]} b5 {[%emt 0:05:17]} 21. Qd2 {[%emt 0:04:12]} b4 {[%emt 0:02:07]} 22. Rf1 {[%emt 0:03:38]} c5 {[%emt 0:07:47]} 23. Rad1 {[%emt 0:00:40]} Nb6 {[%emt 0:05:31]} 24. Bc1 {[%emt 0:25:10]} f5 {[%emt 0:06:58]} 25. exf6 {[%emt 0:00:00]} Bxf6 {[%emt 0:00:21]} 26. Nxf6+ {[%emt 0:00:00]} Qxf6 {[%emt 0:00:59]} 27. Qe2 {[%emt 0:00:00]} Nd7 {[%emt 0:01:31]} 28. g5 {[%emt 0:00:00]} hxg5 {[%emt 0:00:21]} 29. Bxg5 {[%emt 0:00:00]} Qf5 {[%emt 0:01:35]} 30. Be7 {[%emt 0:00:00]} Rf7 {[%emt 0:00:28]} 31. Bd6 {[%emt 0:00:00]} Ne8 {[%emt 0:00:22]} 32. Bh2 {[%emt 0:00:00]} Bg6 {[%emt 0:02:16]} 33. Ne5 {[%emt 0:00:00]} Nxe5 {[%emt 0:01:42]} 34. Qxe5 {[%emt 0:00:00]} Qxe5 {[%emt 0:00:49]} 35. Bxe5 {[%emt 0:00:00]} Rc8 {[%emt 0:00:38]} 36. Rd2 {[%emt 0:00:49]} Kf8 {[%emt 0:01:43]} 37. Re1 {[%emt 0:00:44]} Ke7 {[%emt 0:02:17]} 38. c4 {[%emt 0:01:04]} bxc3 {[%emt 0:01:46]} 39. Bxc3 {[%emt 0:00:02]} Kd6 {[%emt 0:00:22]} 40. d4 {[%emt 0:03:29]} cxd4 {[%emt 0:01:39]} 41. Bxd4 {[%emt 0:00:08]} Rb7 {[%emt 0:00:45]} 42. Re3 {[%emt 0:00:13]} Bc2 {[%emt 0:06:45]} 43. Bc3 {[%emt 0:00:23]} Rxb3 {[%emt 0:03:38]} 44. Rxc2 {[%emt 0:00:19]} d4 {[%emt 0:00:43]} 45. Bxd4 {[%emt 0:02:43]} Rb1+ {[%emt 0:00:05]} 46. Kh2 {[%emt 0:00:02]} Rxc2 {[%emt 0:00:23]} 47. Be5+ {[%emt 0:00:09]} Ke7 {[%emt 0:00:14]} 48. Be4 {[%emt 0:01:11]} Rxf2+ {[%emt 0:00:19]} 49. Kg3 {[%emt 0:00:01]} Rbf1 {[%emt 0:01:51]} 50. Bd3 {[%emt 0:00:46]} Nd6 {[%emt 0:01:10]} 51. Bxd6+ {[%emt 0:00:52]} Kxd6 {[%emt 0:00:04]} 52. Bc4 {[%emt 0:00:25]} Rf6 {[%emt 0:00:28]} 53. Bxf1 {[%emt 0:00:29]} Rxf1 {[%emt 0:00:10]} 54. Rd3+ {[%emt 0:00:39]} Ke7 {[%emt 0:01:36]} 55. Rc3 {[%emt 0:00:29]} Ra1 {[%emt 0:00:20]} 56. Rc4 {[%emt 0:00:05]} Kd6 {[%emt 0:00:58]} 57. Rd4+ {[%emt 0:00:23]} Kc5 {[%emt 0:00:35]} 58. Rd7 {[%emt 0:00:15]} Ra3+ {[%emt 0:01:22]} 59. Kg2 {[%emt 0:00:42]} Rxa4 {[%emt 0:00:22]} 60. Rxg7 {[%emt 0:00:04]} Rh4 {[%emt 0:01:11]} 61. Rg6 {[%emt 0:01:30]} Kd5 {[%emt 0:00:27]} 62. Rg5+ {[%emt 0:00:28]} e5 {[%emt 0:00:11]} 63. Rg6 {[%emt 0:00:08]} a4 {[%emt 0:01:07]} 64. Ra6 {[%emt 0:00:08]} Rb4 {[%emt 0:01:40]} 65. Kf3 {[%emt 0:00:47]} e4+ {[%emt 0:00:41]} 66. Kf4 {[%emt 0:00:15]} Kd4 {[%emt 0:00:01]} 67. Rd6+ {[%emt 0:01:17]} Kc3 {[%emt 0:00:33]} 68. h4 {[%emt 0:00:29]} a3 {[%emt 0:00:17]} 69. Ra6 {[%emt 0:00:23]} Kb2 {[%emt 0:00:20]} 70. h5 {[%emt 0:00:10]} a2 {[%emt 0:01:12]} 0-1

[Event "8th Brazilian Open SESC Caioba 2024"]
[Site "Caioba"]
[Date "2024.06.25"]
[Round "3.12"]
[White "Gauche, Charles"]
[Black "Matsuura, Everaldo"]
[Result "0-1"]
[ECO "A05"]
[WhiteElo "2153"]
[BlackElo "2380"]
[Annotator "RC"]
[PlyCount "96"]
[EventDate "2024.06.15"]
[EventCountry "BRA"]
[SourceTitle "playchess.com"]
[Source "ChessBase"]
[SourceQuality "1"]
[TimeControl "5400+30"]

1. Nf3 {[%emt 0:00:39]} d5 {[%emt 0:10:17]} 2. g3 {[%emt 0:09:41]} Nf6 {[%emt 0:00:45]} 3. Bg2 {[%emt 0:01:05]} g6 {[%emt 0:00:19]} 4. b3 {[%emt 0:00:48]} Bg7 {[%emt 0:00:29]} 5. Bb2 {[%emt 0:01:05]} c5 {[%emt 0:00:15]} 6. c4 {[%emt 0:00:30]} d4 {[%emt 0:00:16]} 7. b4 {[%emt 0:00:17]} O-O {[%emt 0:03:24]} 8. O-O {[%emt 0:07:21]} Nfd7 {[%emt 0:15:52]} 9. d3 {[%emt 0:09:48]} Nc6 {[%emt 0:04:46]} 10. bxc5 {[%emt 0:03:11]} Nxc5 {[%emt 0:00:41]} 11. Ba3 {[%emt 0:01:17]} Qa5 {[%emt 0:06:21]} 12. Qd2 {[%emt 0:00:38]} Qb6 {[%emt 0:03:25]} 13. Qg5 {[%emt 0:05:42]} Nb4 {[%emt 0:05:20]} 14. Nbd2 {[%emt 0:07:08]} h6 {[%emt 0:05:02]} 15. Qh4 {[%emt 0:01:08]} g5 {[%emt 0:06:10]} 16. Nxg5 {[%emt 0:08:55]} hxg5 {[%emt 0:35:08]} 17. Qxg5 {[%emt 0:39:47]} a5 {[%emt 0:00:00]} 18. Ne4 {[%emt 0:00:00]} Nxe4 {[%emt 0:00:00]} 19. Bxe4 {[%emt 0:00:00]} e5 {[%emt 0:00:00]} 20. Bc1 {[%emt 0:00:00]} Qd8 {[%emt 0:00:00]} 21. Qh5 {[%emt 0:00:00]} f5 {[%emt 0:00:00]} 22. Bg2 {[%emt 0:00:00]} Qe8 {[%emt 0:00:00]} 23. Qh4 {[%emt 0:00:00]} Qg6 {[%emt 0:00:00]} 24. a3 {[%emt 0:00:00]} Nc6 {[%emt 0:00:00]} 25. Rb1 {[%emt 0:00:00]} Bf6 {[%emt 0:00:00]} 26. Qh6 {[%emt 0:00:00]} Qxh6 {[%emt 0:00:00]} 27. Bxh6 {[%emt 0:00:00]} Bg7 {[%emt 0:00:00]} 28. Bd5+ {[%emt 0:00:00]} Kh7 {[%emt 0:00:00]} 29. Bxg7 {[%emt 0:00:00]} Kxg7 {[%emt 0:00:00]} 30. Rb6 {[%emt 0:00:00]} Rf6 {[%emt 0:00:00]} 31. Rfb1 {[%emt 0:00:00]} Nd8 {[%emt 0:03:24]} 32. Rxf6 {[%emt 0:00:00]} Kxf6 {[%emt 0:00:06]} 33. Rb6+ {[%emt 0:00:00]} Be6 {[%emt 0:02:04]} 34. h4 {[%emt 0:00:02]} Ra6 {[%emt 0:00:18]} 35. Rxa6 {[%emt 0:00:47]} bxa6 {[%emt 0:00:02]} 36. Ba8 {[%emt 0:00:27]} Bd7 {[%emt 0:01:38]} 37. Bd5 {[%emt 0:03:05]} Bc6 {[%emt 0:01:10]} 38. Bxc6 {[%emt 0:01:42]} Nxc6 {[%emt 0:00:02]} 39. Kf1 {[%emt 0:01:12]} e4 {[%emt 0:00:32]} 40. Ke1 {[%emt 0:00:48]} e3 {[%emt 0:01:10]} 41. Kf1 {[%emt 0:01:34]} a4 {[%emt 0:00:47]} 42. Kg2 {[%emt 0:00:21]} Ne5 {[%emt 0:01:07]} 43. fxe3 {[%emt 0:00:16]} dxe3 {[%emt 0:00:06]} 44. h5 {[%emt 0:00:26]} Kg5 {[%emt 0:01:00]} 45. c5 {[%emt 0:00:07]} Kxh5 {[%emt 0:00:19]} 46. d4 {[%emt 0:00:07]} Nc4 {[%emt 0:00:23]} 47. d5 {[%emt 0:00:17]} Kg4 {[%emt 0:00:16]} 48. c6 {[%emt 0:00:32]} f4 {[%emt 0:00:20]} 0-1

[Event "8th Brazilian Open SESC Caioba 2024"]
[Site "Caioba"]
[Date "2024.06.25"]
[Round "3.13"]
[White "Umetsubo, Cesar Hidemitsu"]
[Black "Cueto, Jonny"]
[Result "1-0"]
[ECO "C41"]
[WhiteElo "2362"]
[BlackElo "2082"]
[Annotator "RC"]
[PlyCount "47"]
[EventDate "2024.06.15"]
[EventCountry "BRA"]
[SourceTitle "playchess.com"]
[Source "ChessBase"]
[SourceQuality "1"]
[TimeControl "5400+30"]

1. d4 {[%emt 0:05:53]} d6 {[%emt 0:00:10]} 2. e4 {[%emt 0:02:29]} Nf6 {[%emt 1:31:20]} 3. Nc3 {[%emt 1:23:38]} e5 {[%emt 0:00:00]} 4. Nf3 {[%emt 0:00:00]} Nbd7 {[%emt 0:00:00]} 5. Bc4 {[%emt 0:00:00]} Be7 {[%emt 0:00:00]} 6. O-O {[%emt 0:00:00]} c6 {[%emt 0:00:00]} 7. a4 {[%emt 0:00:00]} h6 {[%emt 0:00:00]} 8. b3 {[%emt 0:00:00]} Qc7 {[%emt 0:00:00]} 9. Ba3 {[%emt 0:00:00]} Nf8 {[%emt 0:00:00]} 10. Nh4 {[%emt 0:00:00]} exd4 {[%emt 0:00:00]} 11. Qxd4 {[%emt 0:00:00]} Ne6 {[%emt 0:00:00]} 12. Qe3 {[%emt 0:00:00]} Ng4 {[%emt 0:00:00]} 13. Qg3 {[%emt 0:00:00]} Nd4 {[%emt 0:00:00]} 14. Rad1 {[%emt 0:00:00]} g5 {[%emt 0:00:00]} 15. Nf5 {[%emt 0:00:00]} Nxf5 {[%emt 0:00:00]} 16. exf5 {[%emt 0:00:00]} Ne5 {[%emt 0:00:00]} 17. f6 {[%emt 0:00:00]} Bf8 {[%emt 0:00:00]} 18. Ne4 {[%emt 0:00:00]} Nxc4 {[%emt 0:00:00]} 19. bxc4 {[%emt 0:00:00]} Be6 {[%emt 0:00:00]} 20. Nxd6+ {[%emt 0:00:00]} Bxd6 {[%emt 0:00:00]} 21. Bxd6 {[%emt 0:00:00]} Qa5 {[%emt 0:00:00]} 22. Be7 {[%emt 0:00:00]} h5 {[%emt 0:00:00]} 23. Qd6 {[%emt 0:00:00]} Rh7 {[%emt 0:00:00]} 24. Rd2 {[%emt 0:00:00]} 1-0

[Event "8th Brazilian Open SESC Caioba 2024"]
[Site "Caioba"]
[Date "2024.06.25"]
[Round "3.14"]
[White "Guimaraes, Wagner Peixoto"]
[Black "Hoffman, Alejandro"]
[Result "0-1"]
[ECO "E09"]
[WhiteElo "2145"]
[BlackElo "2355"]
[Annotator "RC"]
[PlyCount "62"]
[EventDate "2024.06.15"]
[EventCountry "BRA"]
[SourceTitle "playchess.com"]
[Source "ChessBase"]
[SourceQuality "1"]
[TimeControl "5400+30"]

1. Nf3 {[%emt 0:00:05]} Nf6 {[%emt 0:00:31]} 2. c4 {[%emt 0:00:28]} e6 {[%emt 0:00:41]} 3. g3 {[%emt 0:00:15]} d5 {[%emt 0:00:27]} 4. d4 {[%emt 0:00:08]} Be7 {[%emt 0:00:46]} 5. Bg2 {[%emt 0:00:07]} O-O {[%emt 0:00:07]} 6. O-O {[%emt 0:00:07]} c6 {[%emt 0:00:12]} 7. Qc2 {[%emt 0:00:18]} b6 {[%emt 0:00:35]} 8. Rd1 {[%emt 0:00:42]} Nbd7 {[%emt 0:00:30]} 9. Nbd2 {[%emt 0:01:23]} Bb7 {[%emt 0:00:27]} 10. e4 {[%emt 0:02:28]} Rc8 {[%emt 0:00:14]} 11. e5 {[%emt 0:06:21]} Ne8 {[%emt 0:00:10]} 12. cxd5 {[%emt 0:07:10]} exd5 {[%emt 0:08:35]} 13. Nf1 {[%emt 0:02:26]} c5 {[%emt 0:00:33]} 14. Qe2 {[%emt 0:00:20]} Nc7 {[%emt 0:01:19]} 15. Ne3 {[%emt 0:03:45]} Re8 {[%emt 0:03:29]} 16. Nf5 {[%emt 0:05:34]} Bf8 {[%emt 0:07:28]} 17. h4 {[%emt 0:11:54]} f6 {[%emt 0:07:56]} 18. Qd3 {[%emt 0:07:40]} Ba6 {[%emt 0:09:20]} 19. Qb1 {[%emt 0:02:18]} Be2 {[%emt 0:02:05]} 20. Re1 {[%emt 0:00:28]} Bxf3 {[%emt 0:00:13]} 21. Bxf3 {[%emt 0:00:08]} cxd4 {[%emt 0:00:52]} 22. e6 {[%emt 0:06:02]} Nxe6 {[%emt 0:05:29]} 23. Bxd5 {[%emt 0:06:47]} Ne5 {[%emt 0:00:15]} 24. Qe4 {[%emt 0:07:13]} Kh8 {[%emt 0:00:15]} 25. Bxe6 {[%emt 0:02:20]} Rxe6 {[%emt 0:00:06]} 26. Rd1 {[%emt 0:04:13]} d3 {[%emt 0:09:30]} 27. b3 {[%emt 0:13:00]} Re8 {[%emt 0:05:03]} 28. Bf4 {[%emt 0:03:50]} Qd7 {[%emt 0:07:41]} 29. Ne3 {[%emt 0:00:42]} Rcd8 {[%emt 0:00:56]} 30. Rac1 {[%emt 0:02:40]} Ba3 {[%emt 0:04:43]} 31. Rc3 {[%emt 0:00:34]} Bb2 {[%emt 0:00:40]} 0-1